fUSD/lending_fUSD_20241219
["ID","MTS","AMOUNT","RATE_DAILY","PERIOD"]
[345963543,1734570635101,-1870.24,0.0002381,4]
[345963544,1734570635110,-500.0,0.0002381,4]
[345963545,1734570635122,-544.72,0.0002381,4]
[345963546,1734570635131,-500.0,0.0002381,4]
[345963547,1734570635141,-500.0,0.0002381,4]
[345963548,1734570635154,-602.81,0.0002381,4]
[345963549,1734570635163,-839.16,0.0002381,4]
[345963550,1734570635173,-500.0,0.0002381,4]
[345963551,1734570635183,-500.0,0.0002381,4]
[345963552,1734570635193,-2575.83,0.0002381,4]
[345963553,1734570635203,-844.36,0.0002381,4]
[345963554,1734570635212,-1003.83,0.0002381,4]
[345963555,1734570635222,-500.0,0.0002381,4]
[345963556,1734570635232,-500.0,0.0002381,4]
[345963557,1734570635242,-500.0,0.0002381,4]
[345963558,1734570635252,-2263.7,0.0002381,4]
[345963559,1734570635262,-500.0,0.0002381,4]
[345963560,1734570635272,-668.77,0.0002381,4]
[345963561,1734570635281,-500.0,0.0002381,4]
[345963562,1734570635292,-1565.74,0.0002381,4]
[345963563,1734570635302,-1140.19,0.0002381,2]
[345963564,1734570635312,-673.84,0.0002381,4]
[345963565,1734570635322,-505.1,0.0002381,4]
[345963566,1734570635331,-500.0,0.0002381,4]
[345963567,1734570635343,-616.34,0.0002381,4]
[345963568,1734570635352,-576.22,0.0002381,4]
[345963569,1734570635362,-500.0,0.0002381,4]
[345963570,1734570635371,-1079.11,0.0002381,4]
[345963571,1734570635381,-500.0,0.0002381,4]
[345963572,1734570635391,-500.0,0.0002381,4]
[345963573,1734570635400,-500.0,0.00023811,4]
[345963574,1734570635411,-160.94898204,0.00023811,4]
[345963575,1734570635421,-500.0,0.00023811,4]
[345963576,1734570635430,-500.0,0.00023811,4]
[345963577,1734570635439,-500.0,0.00023811,4]
[345963578,1734570635449,-848.57,0.00023811,4]
[345963579,1734570635458,-500.0,0.00023811,4]
[345963580,1734570635468,-500.0,0.00023811,4]
[345963581,1734570635477,-500.0,0.00023811,4]
[345963582,1734570635487,-500.0,0.00023811,4]
[345963583,1734570635495,-500.0,0.00023811,4]
[345963584,1734570635505,-500.0,0.00023811,4]
[345963585,1734570635514,-500.0,0.00023811,4]
[345963586,1734570635524,-500.0,0.00023811,4]
[345963587,1734570635534,-500.0,0.00023811,4]
[345963588,1734570635543,-500.0,0.00023811,4]
[345963589,1734570635552,-500.0,0.00023811,4]
[345963590,1734570635562,-500.0,0.00023811,4]
[345963591,1734570635572,-500.0,0.00023811,4]
[345963592,1734570635581,-209.81166527,0.00023811,4]
[345963593,1734570635592,-500.0,0.00023811,4]
[345963594,1734570635601,-500.0,0.00023811,4]
[345963595,1734570635611,-500.0,0.00023811,4]
[345963596,1734570635620,-500.0,0.00023811,4]
[345963597,1734570635629,-500.0,0.00023811,4]
[345963598,1734570635639,-551.68,0.00023811,4]
[345963599,1734570635649,-500.0,0.00023811,4]
[345963600,1734570635658,-500.0,0.00023811,4]
[345963601,1734570635668,-500.0,0.00023811,4]
[345963602,1734570635677,-500.0,0.00023811,4]
[345963603,1734570635687,-500.0,0.00023811,4]
[345963604,1734570635696,-500.0,0.00023811,4]
[345963605,1734570635706,-500.0,0.00023811,4]
[345963606,1734570635716,-500.0,0.00023811,4]
[345963607,1734570635726,-1173.06,0.00023811,4]
[345963608,1734570635735,-500.0,0.00023811,4]
[345963609,1734570635744,-500.0,0.00023811,4]
[345963610,1734570635754,-664.37,0.00023811,4]
[345963611,1734570635764,-500.0,0.00023811,4]
[345963612,1734570635774,-1270.82,0.00023811,4]
[345963613,1734570635784,-500.0,0.00023811,4]
[345963614,1734570635794,-500.0,0.00023811,4]
[345963615,1734570635803,-500.0,0.00023811,4]
[345963616,1734570635813,-500.0,0.00023811,4]
[345963617,1734570635823,-500.0,0.00023811,4]
[345963618,1734570635834,-500.0,0.00023811,4]
[345963619,1734570635843,-500.0,0.00023811,4]
[345963620,1734570635854,-715.67,0.00023811,4]
[345963621,1734570635863,-500.0,0.00023811,4]
[345963622,1734570635873,-500.0,0.00023811,4]
[345963623,1734570635882,-500.0,0.00023811,4]
[345963624,1734570635892,-500.0,0.00023811,4]
[345963625,1734570635902,-500.0,0.00023811,4]
[345963626,1734570635911,-500.0,0.00023811,4]
[345963627,1734570635921,-500.0,0.00023811,4]
[345963628,1734570635931,-894.61,0.00023811,4]
[345963629,1734570635940,-500.0,0.00023811,4]
[345963630,1734570635952,-500.0,0.00023811,4]
[345963631,1734570635964,-500.0,0.00023811,4]
[345963632,1734570635974,-668.57,0.00023811,4]
[345963633,1734570635983,-500.0,0.00023811,4]
[345963634,1734570635993,-446.88,0.00023811,4]
[345963635,1734570636005,-500.0,0.00023811,4]
[345963636,1734570636014,-500.0,0.00023811,4]
[345963637,1734570636024,-2112.22905416,0.0002384,2]
[345963638,1734570636037,-334.09415544,0.00023843,4]
[345963639,1734570636047,-500.0,0.00023843,4]
[345963640,1734570636056,-500.0,0.00023843,4]
[345963641,1734570636065,-500.0,0.00023843,4]
[345963642,1734570636075,-500.0,0.00023843,4]
[345963643,1734570636085,-500.0,0.00023843,4]
[345963644,1734570636095,-500.0,0.00023843,4]
[345963645,1734570636104,-484.67512735,0.00023843,4]
[345963646,1734570636114,-500.0,0.00023843,4]
[345963647,1734570636123,-500.0,0.00023843,4]
[345963648,1734570636132,-500.0,0.00023843,4]
[345963649,1734570636142,-500.0,0.00023843,4]
[345963650,1734570636151,-539.05,0.00023843,4]
[345963651,1734570636161,-500.0,0.00023843,4]
[345963652,1734570636171,-500.0,0.00023843,4]
[345963653,1734570636180,-500.0,0.00023843,4]
[345963654,1734570636189,-568.88612095,0.00023843,4]
[345963655,1734570636199,-500.0,0.00023843,4]
[345963656,1734570636208,-500.0,0.00023843,4]
[345963657,1734570636218,-500.0,0.00023843,4]
[345963658,1734570636227,-500.0,0.00023843,4]
[345963659,1734570636237,-500.0,0.00023843,4]
[345963660,1734570636246,-500.0,0.00023843,4]
[345963661,1734570636256,-538.91,0.00023843,4]
[345963662,1734570636265,-500.0,0.00023843,4]
[345963663,1734570636275,-500.0,0.00023843,4]
[345963664,1734570636285,-250.74,0.00023843,4]
[345963665,1734570636295,-500.0,0.00023843,4]
[345963666,1734570636305,-500.0,0.00023843,4]
[345963667,1734570636315,-500.0,0.00023843,4]
[345963668,1734570636324,-500.0,0.00023843,4]
[345963669,1734570636334,-500.0,0.00023843,4]
[345963670,1734570636344,-500.0,0.00023843,4]
[345963671,1734570636354,-500.0,0.00023843,4]
[345963672,1734570636363,-500.0,0.00023843,4]
[345963673,1734570636373,-500.0,0.00023843,4]
[345963674,1734570636383,-636.1,0.00023843,4]
[345963675,1734570636392,-500.0,0.00023843,4]
[345963676,1734570636402,-500.0,0.00023843,4]
[345963677,1734570636411,-500.0,0.00023843,4]
[345963678,1734570636421,-500.0,0.00023843,4]
[345963679,1734570636431,-500.0,0.00023843,4]
[345963680,1734570636441,-1536.85,0.00023843,4]
[345963681,1734570636450,-604.08,0.00023843,4]
[345963682,1734570636459,-1426.01,0.00023843,4]
[345963683,1734570636469,-500.0,0.00023843,4]
[345963684,1734570636478,-2097.05,0.00023843,4]
[345963685,1734570636488,-500.0,0.00023843,4]
[345963686,1734570636497,-500.0,0.00023843,4]
[345963687,1734570636507,-50000.0,0.00023845,2]
[345963688,1734570636516,-500.0,0.00023873,2]
[345963689,1734570636526,-378.44643524,0.00023899,2]
[345963690,1734570636536,-154.50399003,0.00023899,2]
[345963691,1734570636546,-292.0785,0.000239,2]
[345963692,1734570636555,-5110.3814,0.000239,2]
[345963693,1734570636565,-16422.5429,0.000239,2]
[345963694,1734570636574,-2112.22905416,0.0002397,2]
[345963695,1734570636583,-150.0,0.00023971,2]
[345963696,1734570636593,-500.0,0.00023973,2]
[345963697,1734570636603,-161.12844201,0.00023984,2]
[345963698,1734570636612,-179.17260618,0.00023986,2]
[345963699,1734570636622,-3884.09987742,0.0002399,2]
[345963700,1734570636631,-150.12191,0.00023998,5]
[345963701,1734570636641,-150.12191,0.00023998,7]
[345963702,1734570636651,-150.12191,0.00023998,11]
[345963703,1734570636661,-157.12191,0.00023998,4]
[345963704,1734570636670,-157.12191,0.00023998,6]
[345963705,1734570636680,-157.12191,0.00023998,8]
[345963706,1734570636690,-157.12191,0.00023998,12]
[345963707,1734570636699,-26796.7530538,0.00023999,2]
[345963708,1734570636710,-592.27,0.00023999,4]
[345963709,1734570636720,-623.45,0.00023999,4]
[345963710,1734570636729,-1272.07,0.00023999,4]
[345963711,1734570636740,-500.0,0.00023999,4]
[345963712,1734570636749,-192.84,0.00023999,4]
[345963713,1734570636759,-2609.2,0.00023999,4]
[345963714,1734570636769,-1135.88,0.00023999,4]
[345963715,1734570636778,-500.0,0.00023999,4]
[345963716,1734570636788,-573.38,0.00023999,4]
[345963717,1734570636798,-500.0,0.00023999,4]
[345963718,1734570636808,-1335.4,0.00023999,4]
[345963719,1734570636817,-1145.73,0.00023999,4]
[345963720,1734570636827,-1552.07,0.00023999,4]
[345963721,1734570636838,-1877.98,0.00023999,4]
[345963722,1734570636848,-2738.23,0.00023999,4]
[345963723,1734570636858,-821.59,0.00023999,4]
[345963724,1734570636867,-500.0,0.00023999,4]
[345963725,1734570636877,-500.0,0.00023999,4]
[345963726,1734570636886,-1472.83,0.00023999,4]
[345963727,1734570636896,-5537.29,0.00023999,4]
[345963728,1734570636905,-500.0,0.00023999,4]
[345963729,1734570636915,-823.33,0.00023999,4]
[345963730,1734570636924,-1526.14,0.00023999,4]
[345963731,1734570636934,-745.28,0.00023999,4]
[345963732,1734570636945,-500.0,0.00023999,4]
[345963733,1734570636958,-1000.0,0.00023999,4]
[345963734,1734570636968,-556.87,0.00023999,4]
[345963735,1734570636978,-8024.10463291,0.00023999,2]
[345963736,1734570637015,-420.084,0.00023999,2]
[345963737,1734570637036,-1413.55266692,0.00023999,2]
[345963738,1734570637048,-610.56,0.00023999,2]
[345963739,1734570637067,-2263.39005436,0.00023999,2]
[345963740,1734570637095,-34358.38931057,0.00023999,2]
[345963756,1734570638279,-1196.71796321,0.0002371,2]
[345963758,1734570638290,-380.67641698,0.0002371,2]
[345963762,1734570638315,-442.4448,0.0002371,2]
[345963764,1734570638326,-480.16081981,0.0002371,2]
[345963766,1734570638336,-673.69,0.00023809,4]
[345963767,1734570638347,-6217.6734967,0.00023999,2]
[345963769,1734570638358,-693.69152383,0.00023999,2]
[345963771,1734570638368,-785.34100842,0.00023999,2]
[345963772,1734570638379,-2315.71779286,0.00023999,2]
[345963773,1734570638390,-525.1039998,0.00023999,2]
[345963774,1734570639460,-500.0,0.00023809,4]
[345963775,1734570639470,-500.0,0.0002381,4]
[345963776,1734570639479,-3042.88025271,0.00023999,2]
[345963777,1734570639490,-2996.5,0.00023999,2]
[345963778,1734570639574,-255.52876899,0.00023809,4]
[345963779,1734570639586,-244.47123101,0.00023809,4]
[345963780,1734570639597,-265.95317869,0.0002381,4]
[345963781,1734570639692,-234.04682131,0.0002381,4]
[345963782,1734570639702,-466.02217859,0.00023843,4]
[345963783,1734570639754,-101.56782141,0.00023843,4]
[345963784,1734570639764,-1053.72381899,0.00023999,2]
[345963785,1734570639817,-500.0,0.0002381,4]
[345963786,1734570639826,-145.98477598,0.00023999,2]
[345963787,1734570639846,-641.71107021,0.00023999,2]
[345963793,1734570643103,-516.46,0.0002381,4]
[345963794,1734570643114,-165.37583395,0.0002381,4]
[345963795,1734570643169,-334.62416605,0.0002381,4]
[345963796,1734570643180,-270.79725883,0.0002381,4]
[345963797,1734570643235,-229.20274117,0.0002381,4]
[345963798,1734570643244,-2309.73979949,0.00023999,2]
[345963799,1734570643300,-3635.70000001,0.00023999,2]
[345963800,1734570643311,-10049.0,0.00023999,2]
[345963801,1734570643323,-2847.59268996,0.00023999,2]
[345963810,1734570645415,-341.68175003,0.00023809,4]
[345963811,1734570645427,-158.31824997,0.00023809,4]
[345963812,1734570645436,-500.0,0.00023843,4]
[345963813,1734570645446,-2500.49,0.00023999,4]
[345963814,1734570645457,-303.23736993,0.00023999,2]
[345963815,1734570645480,-429.97677968,0.00023809,4]
[345963816,1734570645490,-1008.15900923,0.00023999,2]
[345963817,1734570645502,-1076.24944658,0.00023999,2]
[345963818,1734570645541,-1470.51803953,0.00023999,2]
[345963819,1734570645553,-661.83375492,0.00023999,2]
[345963820,1734570645639,-453.00076933,0.00023999,2]
[345963821,1734570645650,-1051.96977662,0.00023999,2]
[345963822,1734570645668,-279.59938383,0.00023999,2]
[345963823,1734570645690,-5467.74883828,0.00023999,2]
[345963824,1734570645701,-265.40634295,0.00023999,2]
[345963825,1734570645730,-2827.14045835,0.00023999,2]
[345963828,1734571231109,161.6,0.00010137,2]
[345963829,1734571295359,-150.0,0.00024822,120]
[345963830,1734571295397,-2000.0,0.00024904,120]
[345963831,1734571295418,-50.0,0.00024904,120]
[345963832,1734571295760,-150.0,0.00024904,120]
[345963833,1734571295797,-458.54,0.00025,120]
[345963834,1734571295942,-1541.46,0.00025,120]
[345963835,1734571295964,-409.63513819,0.00025,120]
[345963836,1734571295987,-739.32,0.00025016,120]
[345963837,1734571296016,-150.0,0.00025277,120]
[345963838,1734571296050,-150.0,0.00025468,120]
[345963839,1734571296085,-608.54,0.00025733,120]
[345963840,1734571296108,-150.0,0.00025749,120]
[345963841,1734571396400,2000.0,0.00025037,120]
[345963842,1734571405579,293.54972362,0.00025037,120]
[345963843,1734571509054,84417.37,0.00013,2]
[345963844,1734571530668,158590.85281081,9e-05,2]
[345963845,1734571537925,28000.0,8e-05,2]
[345963848,1734571568875,10091.21994884,7e-05,2]
[345963870,1734571831845,-153.0,0.00017605,2]
[345963871,1734571831855,-153.0,0.00017605,2]
[345963872,1734571831865,-153.0,0.00017605,2]
[345963873,1734571831875,-153.0,0.00017605,2]
[345963874,1734571831884,-415.02,0.0002036,2]
[345963875,1734571831894,-258.04029303,0.00022,3]
[345963876,1734571831907,-2014.45627984,0.00022,3]
[345963877,1734571831922,-163.59,0.0002225,2]
[345963878,1734571831932,-175.05,0.00022278,2]
[345963879,1734571831941,-250.0,0.00022329,2]
[345963880,1734571831951,-378.71,0.00022554,2]
[345963881,1734571831961,-163.19,0.00022566,2]
[345963882,1734571831970,-415.02,0.00022624,2]
[345963883,1734571831980,-1164.18491375,0.00022698,2]
[345963884,1734571831992,-6943.46146662,0.00022698,2]
[345963885,1734571832003,-526.32463108,0.00022698,2]
[345963886,1734571832015,-3748.74898855,0.00022698,2]
[345963887,1734571832024,-1000.0,0.00022757,2]
[345963888,1734571832034,-157.57,0.00022785,2]
[345963889,1734571832044,-379.215,0.000228,2]
[345963890,1734571832054,-608.54,0.00022874,2]
[345963891,1734571832063,-200.0,0.0002291,2]
[345963892,1734571832073,-55587.34083052,0.00023,5]
[345963893,1734571832083,-500.0,0.00023,30]
[345963894,1734571832092,-500.0,0.00023,30]
[345963895,1734571832102,-500.0,0.00023,30]
[345963896,1734571832111,-500.0,0.00023,30]
[345963897,1734571832121,-500.0,0.00023,30]
[345963898,1734571832130,-500.0,0.00023,30]
[345963899,1734571832139,-500.0,0.00023,30]
[345963901,1734571832149,-500.0,0.00023,30]
[345963903,1734571832158,-436.58,0.00023096,2]
[345963905,1734571832174,-769.82,0.00023096,2]
[345963907,1734571832184,-769.82,0.00023096,2]
[345963908,1734571832193,-436.58,0.00023096,2]
[345963909,1734571832203,-436.58,0.00023096,2]
[345963910,1734571832212,-769.82,0.00023096,2]
[345963911,1734571832222,-436.58,0.00023096,2]
[345963912,1734571832231,-1393.94,0.00023096,2]
[345963913,1734571832240,-436.58,0.00023096,2]
[345963914,1734571832250,-388.28,0.00023096,2]
[345963915,1734571832259,-769.82,0.000232,2]
[345963916,1734571832269,-436.58,0.000232,2]
[345963917,1734571832278,-1770.25,0.00023368,2]
[345963918,1734571832288,-999.99,0.00023368,2]
[345963919,1734571832298,-150.99,0.00023368,2]
[345963920,1734571832308,-500.0,0.0002337,2]
[345963921,1734571832317,-150.0,0.0002337,2]
[345963922,1734571832329,-364.84,0.0002337,2]
[345963923,1734571832339,-150.0,0.0002337,2]
[345963924,1734571832349,-364.84,0.0002337,2]
[345963925,1734571832359,-364.84,0.0002337,2]
[345963926,1734571832369,-238.62,0.0002337,2]
[345963928,1734571832379,-175.05,0.00023392,2]
[345963929,1734571832388,-975.93,0.000234,2]
[345963930,1734571832398,-300.0,0.000234,2]
[345963931,1734571832410,-300.78,0.000234,2]
[345963932,1734571832427,-364.84,0.000234,2]
[345963933,1734571832436,-769.82,0.000234,2]
[345963934,1734571832446,-151.38,0.000234,2]
[345963935,1734571832456,-436.58,0.000234,2]
[345963936,1734571832466,-167.77,0.0002359,2]
[345963937,1734571832475,-157.57,0.00023628,2]
[345963938,1734571832485,-264.8205,0.00023709,2]
[345963939,1734571832494,-3851.358,0.00023709,2]
[345963940,1734571832504,-1478.56033793,0.0002371,2]
[345963941,1734571832514,-1000.0,0.0002371,2]
[345963942,1734571832523,-177.24050137,0.00023711,4]
[345963943,1734571832532,-1000.0,0.000238,2]
[345963944,1734571832542,-500.0,0.00023809,4]
[345963945,1734571832551,-501.08,0.00023809,4]
[345963946,1734571832561,-500.0,0.00023809,4]
[345963947,1734571832571,-618.06,0.00023809,4]
[345963948,1734571832580,-500.0,0.00023809,4]
[345963949,1734571832589,-751.52,0.00023809,4]
[345963950,1734571832598,-500.0,0.00023809,4]
[345963951,1734571832609,-500.0,0.00023809,4]
[345963952,1734571832620,-500.0,0.00023809,4]
[345963953,1734571832631,-281.01484036,0.00023809,4]
[345963954,1734571832641,-500.0,0.00023809,4]
[345963955,1734571832650,-500.0,0.00023809,4]
[345963956,1734571832661,-500.0,0.00023809,4]
[345963957,1734571832677,-500.0,0.00023809,4]
[345963958,1734571832687,-586.44,0.00023809,4]
[345963959,1734571832697,-500.0,0.00023809,4]
[345963960,1734571832707,-500.0,0.00023809,4]
[345963961,1734571832718,-508.75,0.00023809,4]
[345963962,1734571832728,-500.0,0.00023809,4]
[345963963,1734571832738,-500.0,0.00023809,4]
[345963964,1734571832748,-1714.42,0.00023809,4]
[345963965,1734571832757,-500.0,0.00023809,4]
[345963966,1734571832767,-500.0,0.00023809,4]
[345963967,1734571832776,-500.0,0.00023809,4]
[345963968,1734571832786,-500.0,0.00023809,4]
[345963969,1734571832796,-500.0,0.00023809,4]
[345963970,1734571832806,-500.0,0.00023809,4]
[345963971,1734571832816,-535.38,0.00023809,4]
[345963972,1734571832826,-503.62,0.00023809,4]
[345963973,1734571832836,-627.29,0.00023809,4]
[345963974,1734571832846,-500.0,0.00023809,4]
[345963975,1734571832856,-500.0,0.00023809,4]
[345963976,1734571832866,-500.0,0.00023809,4]
[345963977,1734571832875,-500.0,0.00023809,4]
[345963978,1734571832885,-884.17,0.00023809,4]
[345963979,1734571832894,-689.54,0.00023809,4]
[345963980,1734571832903,-419.83,0.00023809,4]
[345963981,1734571832913,-500.0,0.00023809,4]
[345963982,1734571832929,-500.0,0.00023809,4]
[345963983,1734571832939,-500.0,0.00023809,4]
[345963984,1734571832948,-500.0,0.00023809,4]
[345963985,1734571832957,-500.0,0.00023809,4]
[345963986,1734571832967,-487.27,0.00023809,4]
[345963987,1734571832976,-839.01,0.00023809,4]
[345963988,1734571832985,-1000.0,0.00023809,4]
[345963989,1734571832994,-665.85,0.00023809,4]
[345963990,1734571833005,-533.67,0.00023809,4]
[345963991,1734571833014,-1219.06,0.00023809,4]
[345963992,1734571833024,-500.0,0.00023809,4]
[345963993,1734571833034,-172.17,0.00023809,4]
[345963994,1734571833043,-2396.3,0.00023809,4]
[345963995,1734571833053,-1112.24,0.00023809,4]
[345963996,1734571833062,-500.0,0.00023809,4]
[345963997,1734571833072,-785.6,0.00023809,4]
[345963998,1734571833083,-500.0,0.00023809,4]
[345963999,1734571833092,-1279.4,0.00023809,4]
[345964000,1734571833103,-500.0,0.00023809,4]
[345964001,1734571833112,-500.0,0.00023809,4]
[345964002,1734571833123,-500.0,0.00023809,4]
[345964003,1734571833132,-500.0,0.00023809,4]
[345964004,1734571833142,-500.0,0.00023809,4]
[345964005,1734571833151,-500.0,0.00023809,4]
[345964006,1734571833161,-1000.0,0.00023809,5]
[345964007,1734571833176,-500.0,0.00023809,4]
[345964008,1734571833184,-500.0,0.00023809,4]
[345964009,1734571833194,-539.44,0.00023809,4]
[345964010,1734571833204,-182.9333083,0.00023809,2]
[345964011,1734571833214,-500.0,0.00023809,4]
[345964012,1734571833223,-5081.5,0.0002381,2]
[345964013,1734571833233,-552.58261603,0.0002381,4]
[345964014,1734571833243,-500.0,0.0002381,4]
[345964015,1734571833253,-804.2,0.0002381,4]
[345964016,1734571833263,-500.0,0.0002381,4]
[345964017,1734571833273,-500.0,0.0002381,4]
[345964018,1734571833283,-500.0,0.0002381,4]
[345964019,1734571833292,-500.0,0.0002381,4]
[345964020,1734571833302,-1124.19,0.0002381,4]
[345964021,1734571833312,-636.69,0.0002381,4]
[345964022,1734571833324,-1217.87,0.0002381,4]
[345964023,1734571833333,-500.0,0.0002381,4]
[345964024,1734571833343,-500.0,0.0002381,4]
[345964025,1734571833352,-500.0,0.0002381,4]
[345964026,1734571833363,-685.85,0.0002381,4]
[345964027,1734571833372,-500.0,0.0002381,4]
[345964028,1734571833382,-500.0,0.0002381,4]
[345964029,1734571833391,-500.0,0.0002381,4]
[345964030,1734571833402,-857.33,0.0002381,4]
[345964031,1734571833411,-500.0,0.0002381,4]
[345964032,1734571833426,-428.2032033,0.00023817,2]
[345964033,1734571833436,-6710.16382489,0.0002383,5]
[345964034,1734571833446,-384.55721,0.00023835,5]
[345964035,1734571833456,-6710.16382489,0.00023837,5]
[345964036,1734571833466,-1478.56033791,0.0002384,2]
[345964037,1734571833477,-500.0,0.00023843,4]
[345964038,1734571833487,-500.0,0.00023843,4]
[345964039,1734571833497,-500.0,0.00023843,4]
[345964040,1734571833507,-500.0,0.00023843,4]
[345964041,1734571833517,-500.0,0.00023843,4]
[345964042,1734571833527,-500.0,0.00023843,4]
[345964043,1734571833537,-500.0,0.00023843,4]
[345964044,1734571833546,-500.0,0.00023843,4]
[345964045,1734571833556,-500.0,0.00023843,4]
[345964046,1734571833566,-560.41,0.00023843,4]
[345964047,1734571833575,-500.0,0.00023843,4]
[345964048,1734571833585,-500.0,0.00023843,4]
[345964049,1734571833594,-500.0,0.00023843,4]
[345964050,1734571833604,-500.0,0.00023843,4]
[345964051,1734571833614,-500.0,0.00023843,4]
[345964052,1734571833624,-500.0,0.00023843,4]
[345964053,1734571833633,-500.0,0.00023843,4]
[345964054,1734571833642,-640.72,0.00023843,4]
[345964055,1734571833651,-500.0,0.00023843,4]
[345964056,1734571833661,-500.0,0.00023843,4]
[345964057,1734571833676,-500.0,0.00023843,4]
[345964058,1734571833686,-491.27,0.00023846,2]
[345964059,1734571833696,-506.45,0.00023846,2]
[345964060,1734571833706,-500.72,0.00023846,2]
[345964061,1734571833715,-275.89214994,0.00023854,5]
[345964062,1734571833725,-275.89214994,0.00023858,5]
[345964063,1734571833735,-384.55721,0.00023858,5]
[345964064,1734571833745,-6710.16382489,0.00023858,5]
[345964065,1734571833754,-200.0,0.0002386,5]
[345964066,1734571833764,-275.89214994,0.00023867,5]
[345964067,1734571833773,-384.55721,0.00023872,5]
[345964068,1734571833783,-275.89214994,0.00023875,5]
[345964069,1734571833792,-6710.16382489,0.00023886,5]
[345964070,1734571833802,-6710.16382489,0.00023886,5]
[345964071,1734571833811,-384.55721,0.00023893,5]
[345964072,1734571833820,-275.89214994,0.00023893,5]
[345964073,1734571833829,-384.55721,0.00023893,5]
[345964074,1734571833839,-6710.16382489,0.00023893,5]
[345964075,1734571833849,-384.55721,0.00023895,5]
[345964076,1734571833858,-275.89214994,0.00023895,5]
[345964077,1734571833868,-4950.0,0.00023899,2]
[345964078,1734571833878,-154.50399003,0.00023899,2]
[345964079,1734571833888,-200.0,0.000239,5]
[345964080,1734571833897,-1328.0602,0.000239,2]
[345964081,1734571833907,-1478.56033791,0.0002397,2]
[345964082,1734571833920,-159.95006841,0.00023973,2]
[345964083,1734571833931,-500.90740522,0.00023973,2]
[345964084,1734571833941,-179.17260617,0.00023983,2]
[345964085,1734571833951,-159.75961038,0.00023983,2]
[345964086,1734571833960,-500.0,0.0002399,2]
[345964087,1734571833970,-165.37,0.0002399,2]
[345964088,1734571833980,-500.0,0.00023997,4]
[345964089,1734571833989,-265.94,0.00023997,4]
[345964090,1734571833999,-517.07,0.00023997,4]
[345964091,1734571834009,-1597.25,0.00023997,4]
[345964092,1734571834018,-500.0,0.00023997,4]
[345964093,1734571834028,-820.75,0.00023997,4]
[345964094,1734571834037,-871.37,0.00023997,4]
[345964095,1734571834047,-500.0,0.00023997,4]
[345964096,1734571834056,-1075.17,0.00023997,4]
[345964097,1734571834066,-1247.96,0.00023997,4]
[345964098,1734571834076,-754.49,0.00023997,4]
[345964099,1734571834086,-500.0,0.00023997,4]
[345964100,1734571834096,-773.2,0.00023997,4]
[345964101,1734571834105,-1157.74,0.00023997,4]
[345964102,1734571834115,-808.28,0.00023997,4]
[345964103,1734571834125,-3230.95,0.00023997,4]
[345964104,1734571834135,-529.31,0.00023997,4]
[345964105,1734571834144,-500.0,0.00023997,4]
[345964106,1734571834154,-500.0,0.00023997,4]
[345964107,1734571834163,-500.0,0.00023997,4]
[345964108,1734571834179,-500.0,0.00023997,4]